[Event "2nd Ramco Technology Open 2019"]
[Site "Rajapalayam"]
[Date "2019.12.02"]
[Round "5.5"]
[White "Murali Krishnan B T"]
[Black "Vijay Kumar Pakkurti"]
[Result "1-0"]
[ECO "D63"]
[WhiteElo "2197"]
[BlackElo "1247"]
[Annotator "ChessBase"]
[PlyCount "49"]
[EventDate "2019.12.01"]
[EventType "swiss"]
[EventCountry "IND"]
[SourceTitle "playchess.com"]
[Source "ChessBase"]
[SourceQuality "1"]
[TimeControl "5400+30"]

1. d4 {[%emt 0:00:00]} d5 {[%emt 0:00:00]} 2. c4 {[%emt 0:00:00]} e6 {[%emt 0:01:46]} 3. Nc3 {[%emt 0:00:00]} Nf6 {[%emt 0:00:29]} 4. Bg5 {[%emt 0:00:05]} Nbd7 {[%emt 0:00:33]} 5. e3 {[%emt 0:00:23]} Be7 {[%emt 0:00:15]} 6. Nf3 {[%emt 0:00:07]} O-O {[%emt 0:00:14]} 7. Rc1 {[%emt 0:00:10]} c6 {[%emt 0:01:24]} 8. a3 {[%emt 0:01:04]} h6 {[%emt 0:01:24]} 9. Bh4 {[%emt 0:00:10]} a6 {[%emt 0:02:04]} 10. cxd5 {[%emt 0:11:55]} exd5 {[%emt 0:04:07]} 11. Bd3 {[%emt 0:01:12]} Re8 {[%emt 0:00:40]} 12. Bg3 {[%emt 0:02:22]} Nf8 {[%emt 0:00:23]} 13. O-O {[%emt 0:00:17]} Bg4 {[%emt 0:01:04]} 14. Qb3 {[%emt 0:06:34]} Bxf3 {[%emt 0:00:42]} 15. gxf3 {[%emt 0:00:06]} b5 {[%emt 0:04:31]} 16. Ne2 {[%emt 0:03:03]} Qd7 {[%emt 0:01:00]} 17. Rc3 {[%emt 0:02:14]} Nh5 {[%emt 0:06:27]} 18. Rfc1 {[%emt 0:01:09]} Nxg3 {[%emt 0:02:52]} 19. hxg3 {[%emt 0:02:07]} Bg5 {[%emt 0:05:12]} 20. Rxc6 {[%emt 0:01:39]} Qh3 {[%emt 0:00:40]} 21. f4 {[%emt 0:01:05]} Rxe3 {[%emt 0:04:13]} 22. fxe3 {[%emt 0:00:49]} Bxf4 {[%emt 0:00:14]} 23. exf4 {[%emt 0:04:59]} g5 {[%emt 0:02:07]} 24. Qxd5 {[%emt 0:00:28]} Re8 {[%emt 0:00:12]} 25. Rf6 {[%emt 0:04:06]} 1-0

[Event "2nd Ramco Technology Open 2019"]
[Site "Rajapalayam"]
[Date "2019.12.02"]
[Round "6.2"]
[White "Muthaiah AL"]
[Black "Harikrishnan.A.Ra"]
[Result "1/2-1/2"]
[ECO "E04"]
[WhiteElo "2363"]
[BlackElo "2440"]
[Annotator "RC"]
[PlyCount "40"]
[EventDate "2019.12.01"]
[EventType "swiss"]
[EventCountry "IND"]
[SourceTitle "playchess.com"]
[Source "ChessBase"]
[SourceQuality "1"]
[TimeControl "5400+30"]

1. d4 {[%emt 0:00:50]} Nf6 {[%emt 0:00:00]} 2. c4 {[%emt 0:00:15]} e6 {[%emt 0:00:37]} 3. g3 {[%emt 0:00:30]} d5 {[%emt 0:00:48]} 4. Bg2 {[%emt 0:00:27]} dxc4 {[%emt 0:02:00]} 5. Nf3 {[%emt 0:00:34]} c5 {[%emt 0:00:21]} 6. O-O {[%emt 0:00:31]} Nc6 {[%emt 0:00:04]} 7. dxc5 {[%emt 0:00:35]} Qxd1 {[%emt 0:00:10]} 8. Rxd1 {[%emt 0:00:08]} Bxc5 {[%emt 0:00:05]} 9. Nbd2 {[%emt 0:00:42]} c3 {[%emt 0:00:02]} 10. bxc3 {[%emt 0:00:20]} O-O {[%emt 0:00:05]} 11. Nb3 {[%emt 0:00:41]} Be7 {[%emt 0:00:02]} 12. c4 {[%emt 0:00:32]} Bd7 {[%emt 0:04:38]} 13. Bb2 {[%emt 0:01:28]} Rfd8 {[%emt 0:00:10]} 14. Nfd4 {[%emt 0:00:29]} Rac8 {[%emt 0:11:01]} 15. c5 {[%emt 0:03:30]} Nxd4 {[%emt 0:11:41]} 16. Bxd4 {[%emt 0:00:23]} Bc6 {[%emt 0:00:43]} 17. Rab1 {[%emt 0:01:29]} Be4 {[%emt 0:14:04]} 18. Rbc1 {[%emt 0:10:13]} Bxg2 {[%emt 0:05:49]} 19. Kxg2 {[%emt 0:00:27]} h6 {[%emt 0:13:20]} 20. Bxf6 {[%emt 0:10:30]} Bxf6 {[%emt 0:34:20]} 1/2-1/2

[Event "2nd Ramco Technology Open 2019"]
[Site "Rajapalayam"]
[Date "2019.12.03"]
[Round "7.5"]
[White "Sree Veeramani P"]
[Black "Manigandan, S S"]
[Result "0-1"]
[ECO "B44"]
[WhiteElo "1748"]
[BlackElo "2164"]
[Annotator "RC"]
[PlyCount "58"]
[EventDate "2019.12.01"]
[EventType "swiss"]
[EventCountry "IND"]
[SourceTitle "playchess.com"]
[Source "ChessBase"]
[SourceQuality "1"]
[TimeControl "5400+30"]

1. e4 c5 2. Nf3 e6 3. d4 cxd4 4. Nxd4 Nc6 5. c4 Nf6 6. Nc3 Bb4 7. f3 d5 8. cxd5 exd5 9. Bb5 O-O 10. Nxc6 bxc6 11. Bxc6 Nxe4 12. Qd4 Bc5 13. Qxd5 Qh4+ 14. g3 Bf2+ 15. Kd1 Nxg3 16. Bg5 Qh3 17. Bxa8 Nxh1 18. Kd2 Be6 19. Qe4 Qxh2 20. f4 Be1+ 21. Kxe1 Qf2+ 22. Kd1 Qxb2 23. Qxh1 Qxa1+ 24. Kd2 Qb2+ 25. Kd3 Rc8 26. Nd5 Bf5+ 27. Ke3 Qa3+ 28. Kd4 Qd3+ 29. Ke5 Qe2+ 0-1